[Event "Titled Tuesday Blitz April 12 Late 2022"]
[White "Adewumi, Tanitoluwa"]
[Black "Svane, Frederik"]
[WhiteFideId "30966396"]
[BlackFideId "12923044"]
[WhiteElo "2536"]
[BlackElo "2459"]
[Result "0-1"]
[Round "03"]
[TimeControl "180+1"]
[Date "2022.04.12"]
[WhiteClock "0:00:02"]
[BlackClock "0:01:01"]

1. e4 {[%clk 0:02:55]}  c5 {[%clk 0:03:00]} 2. Nf3 {[%clk 0:02:55]}  e6 {[%clk 0:03:01]} 3. d4 {[%clk 0:02:54]}  cxd4 {[%clk 0:03:02]} 4. Nxd4 {[%clk 0:02:54]}  Nc6 {[%clk 0:03:02]} 5. Nc3 {[%clk 0:02:54]}  a6 {[%clk 0:03:03]} 6. Be3 {[%clk 0:02:52]}  Nf6 {[%clk 0:03:03]} 7. Be2 {[%clk 0:02:49]}  d6 {[%clk 0:03:01]} 8. O-O {[%clk 0:02:49]}  Be7 {[%clk 0:03:02]} 9. f4 {[%clk 0:02:49]}  O-O {[%clk 0:03:01]} 10. Bf3 {[%clk 0:02:50]}  Nxd4 {[%clk 0:02:42]} 11. Bxd4 {[%clk 0:02:46]}  Rb8 {[%clk 0:02:39]} 12. Ba7 {[%clk 0:02:34]}  Ra8 {[%clk 0:02:38]} 13. Bd4 {[%clk 0:02:35]}  Qc7 {[%clk 0:02:34]} 14. a4 {[%clk 0:02:15]}  e5 {[%clk 0:02:29]} 15. Be3 {[%clk 0:02:12]}  Be6 {[%clk 0:02:26]} 16. a5 {[%clk 0:02:04]}  exf4 {[%clk 0:02:25]} 17. Bxf4 {[%clk 0:01:46]}  Nd7 {[%clk 0:02:25]} 18. Nd5 {[%clk 0:01:37]}  Bxd5 {[%clk 0:02:25]} 19. Qxd5 {[%clk 0:01:35]}  Ne5 {[%clk 0:02:20]} 20. c3 {[%clk 0:01:31]}  Bf6 {[%clk 0:02:15]} 21. Be2 {[%clk 0:01:22]}  g6 {[%clk 0:02:10]} 22. Rfd1 {[%clk 0:01:15]}  Rfd8 {[%clk 0:02:04]} 23. g3 {[%clk 0:01:05]}  Qe7 {[%clk 0:01:56]} 24. Ra4 {[%clk 0:01:00]}  Rd7 {[%clk 0:01:42]} 25. Rb4 {[%clk 0:00:55]}  Rc8 {[%clk 0:01:36]} 26. Bxe5 {[%clk 0:00:44]}  Bxe5 {[%clk 0:01:36]} 27. Bg4 {[%clk 0:00:44]}  Rc5 {[%clk 0:01:36]} 28. Qxc5 {[%clk 0:00:39]}  dxc5 {[%clk 0:01:36]} 29. Rxd7 {[%clk 0:00:37]}  Qg5 {[%clk 0:01:31]} 30. Rbxb7 {[%clk 0:00:16]}  Qxg4 {[%clk 0:01:32]} 31. Rxf7 {[%clk 0:00:16]}  Qd1+ {[%clk 0:01:32]} 32. Rf1 {[%clk 0:00:15]}  Qe2 {[%clk 0:01:28]} 33. Re7 {[%clk 0:00:11]}  Qe3+ {[%clk 0:01:26]} 34. Rf2 {[%clk 0:00:10]}  Qe1+ {[%clk 0:01:27]} 35. Rf1 {[%clk 0:00:10]}  Qxe4 {[%clk 0:01:26]} 36. Rff7 {[%clk 0:00:08]}  Qe3+ {[%clk 0:01:22]} 37. Kg2 {[%clk 0:00:08]}  Qe2+ {[%clk 0:01:21]} 38. Kg1 {[%clk 0:00:07]}  Qd1+ {[%clk 0:01:13]} 39. Rf1 {[%clk 0:00:06]}  Qd6 {[%clk 0:01:12]} 40. Rff7 {[%clk 0:00:05]}  Bf6 {[%clk 0:01:03]} 41. Rd7 {[%clk 0:00:04]}  Qe6 {[%clk 0:01:02]} 42. Rg7+ {[%clk 0:00:01]}  Bxg7 {[%clk 0:01:01]} 43. Rxg7+ {[%clk 0:00:02]}  Kxg7 {[%clk 0:01:01]} 0-1


[Site "https://www.chess.com"]

[Event "Titled Tuesday Blitz April 12 Late 2022"]
[White "Afshar, Niusha"]
[Black "Janturin, Artur"]
[WhiteFideId "12509892"]
[BlackFideId "4130022"]
[WhiteElo "1862"]
[BlackElo "2357"]
[Result "0-1"]
[Round "03"]
[TimeControl "180+1"]
[Date "2022.04.13"]
[WhiteClock "0:01:49"]
[BlackClock "0:01:00"]

1. e4 {[%clk 0:03:00]}  a6 {[%clk 0:02:54]} 2. d4 {[%clk 0:03:00]}  b5 {[%clk 0:02:55]} 3. Nf3 {[%clk 0:02:59]}  Bb7 {[%clk 0:02:54]} 4. Bd3 {[%clk 0:02:59]}  Nf6 {[%clk 0:02:53]} 5. e5 {[%clk 0:02:52]}  Nd5 {[%clk 0:02:53]} 6. Be4 {[%clk 0:02:48]}  e6 {[%clk 0:02:39]} 7. O-O {[%clk 0:02:40]}  c5 {[%clk 0:02:36]} 8. dxc5 {[%clk 0:02:40]}  Bxc5 {[%clk 0:02:37]} 9. c3 {[%clk 0:02:37]}  Qb6 {[%clk 0:02:29]} 10. b4 {[%clk 0:02:28]}  Be7 {[%clk 0:02:27]} 11. Bxd5 {[%clk 0:02:24]}  Bxd5 {[%clk 0:02:27]} 12. Be3 {[%clk 0:02:25]}  Qb7 {[%clk 0:02:22]} 13. Nbd2 {[%clk 0:02:21]}  O-O {[%clk 0:02:20]} 14. Qc2 {[%clk 0:02:20]}  Nc6 {[%clk 0:02:16]} 15. Nd4 {[%clk 0:02:20]}  Nxe5 {[%clk 0:02:10]} 16. Bf4 {[%clk 0:02:15]}  Ng6 {[%clk 0:02:01]} 17. Bg3 {[%clk 0:02:13]}  Bxg2 {[%clk 0:01:50]} 18. Rfe1 {[%clk 0:02:03]}  Bd5 {[%clk 0:01:46]} 19. Ne4 {[%clk 0:01:54]}  Bxe4 {[%clk 0:01:14]} 20. Rxe4 {[%clk 0:01:55]}  Rfc8 {[%clk 0:01:12]} 21. Qd3 {[%clk 0:01:54]}  Rc4 {[%clk 0:01:06]} 22. Rae1 {[%clk 0:01:51]}  Rac8 {[%clk 0:01:05]} 23. Ne2 {[%clk 0:01:49]}  Rxe4 {[%clk 0:01:00]} 0-1


[Site "https://www.chess.com"]

[Event "Titled Tuesday Blitz April 12 Late 2022"]
[White "Antonova, Nadezhda"]
[Black "Bachmann, Axel"]
[WhiteFideId "14700182"]
[BlackFideId "3700488"]
[WhiteElo "1789"]
[BlackElo "2587"]
[Result "0-1"]
[Round "03"]
[TimeControl "180+1"]
[Date "2022.04.13"]
[WhiteClock "0:00:03"]
[BlackClock "0:00:18"]

1. Nf3 {[%clk 0:02:59]}  Nf6 {[%clk 0:02:59]} 2. b3 {[%clk 0:02:59]}  g6 {[%clk 0:02:59]} 3. Bb2 {[%clk 0:02:59]}  Bg7 {[%clk 0:03:00]} 4. g3 {[%clk 0:03:00]}  O-O {[%clk 0:03:01]} 5. Bg2 {[%clk 0:03:00]}  d6 {[%clk 0:02:58]} 6. d4 {[%clk 0:03:00]}  a5 {[%clk 0:02:59]} 7. O-O {[%clk 0:02:58]}  a4 {[%clk 0:02:58]} 8. b4 {[%clk 0:02:52]}  c5 {[%clk 0:02:53]} 9. dxc5 {[%clk 0:02:47]}  dxc5 {[%clk 0:02:53]} 10. bxc5 {[%clk 0:02:46]}  Na6 {[%clk 0:02:52]} 11. a3 {[%clk 0:02:42]}  Nxc5 {[%clk 0:02:51]} 12. Nbd2 {[%clk 0:02:41]}  Qb6 {[%clk 0:02:46]} 13. Rb1 {[%clk 0:02:32]}  Qa6 {[%clk 0:02:47]} 14. Re1 {[%clk 0:02:22]}  Bg4 {[%clk 0:02:43]} 15. h3 {[%clk 0:02:21]}  Bf5 {[%clk 0:02:42]} 16. Nd4 {[%clk 0:02:19]}  Bd7 {[%clk 0:02:29]} 17. e3 {[%clk 0:02:18]}  Rfd8 {[%clk 0:02:27]} 18. Bc3 {[%clk 0:02:17]}  Rac8 {[%clk 0:02:23]} 19. Bb4 {[%clk 0:02:08]}  b6 {[%clk 0:01:56]} 20. Qc1 {[%clk 0:01:40]}  e5 {[%clk 0:01:51]} 21. N4f3 {[%clk 0:01:34]}  Nfe4 {[%clk 0:01:48]} 22. Nxe4 {[%clk 0:01:30]}  Nxe4 {[%clk 0:01:48]} 23. Qb2 {[%clk 0:01:24]}  Re8 {[%clk 0:01:22]} 24. Nd2 {[%clk 0:01:20]}  Nc5 {[%clk 0:01:17]} 25. Ne4 {[%clk 0:01:19]}  Nxe4 {[%clk 0:01:10]} 26. Bxe4 {[%clk 0:01:19]}  Bxh3 {[%clk 0:01:10]} 27. Red1 {[%clk 0:00:52]}  Rc4 {[%clk 0:00:58]} 28. Bd3 {[%clk 0:00:50]}  Qa8 {[%clk 0:00:57]} 29. Bf1 {[%clk 0:00:38]}  Bxf1 {[%clk 0:00:55]} 30. Kxf1 {[%clk 0:00:38]}  Qh1+ {[%clk 0:00:52]} 31. Ke2 {[%clk 0:00:38]}  Qh5+ {[%clk 0:00:52]} 32. Kf1 {[%clk 0:00:38]}  e4 {[%clk 0:00:49]} 33. Qa2 {[%clk 0:00:37]}  Rec8 {[%clk 0:00:46]} 34. Rd2 {[%clk 0:00:27]}  Bc3 {[%clk 0:00:41]} 35. Bxc3 {[%clk 0:00:26]}  Rxc3 {[%clk 0:00:41]} 36. Rxb6 {[%clk 0:00:24]}  Qh1+ {[%clk 0:00:38]} 37. Ke2 {[%clk 0:00:22]}  Qf3+ {[%clk 0:00:39]} 38. Ke1 {[%clk 0:00:21]}  Rxe3+ {[%clk 0:00:36]} 39. fxe3 {[%clk 0:00:16]}  Qxe3+ {[%clk 0:00:37]} 40. Re2 {[%clk 0:00:15]}  Qg1+ {[%clk 0:00:34]} 41. Kd2 {[%clk 0:00:13]}  Qxb6 {[%clk 0:00:34]} 42. Rxe4 {[%clk 0:00:13]}  Qf2+ {[%clk 0:00:34]} 43. Kc1 {[%clk 0:00:11]}  Qg1+ {[%clk 0:00:27]} 44. Kb2 {[%clk 0:00:08]}  Qxg3 {[%clk 0:00:27]} 45. Re7 {[%clk 0:00:06]}  Qc3+ {[%clk 0:00:27]} 46. Kb1 {[%clk 0:00:06]}  Rb8+ {[%clk 0:00:23]} 47. Kc1 {[%clk 0:00:06]}  Qf6 {[%clk 0:00:19]} 48. Re2 {[%clk 0:00:05]}  Qf1+ {[%clk 0:00:18]} 49. Kd2 {[%clk 0:00:05]}  Rd8+ {[%clk 0:00:18]} 50. Ke3 {[%clk 0:00:04]}  Re8+ {[%clk 0:00:18]} 51. Kd4 {[%clk 0:00:05]}  Qxe2 {[%clk 0:00:18]} 52. Qd5 {[%clk 0:00:03]}  Qd2+ {[%clk 0:00:18]} 53. Kc4 {[%clk 0:00:03]}  Rc8+ {[%clk 0:00:18]} 0-1


[Site "https://www.chess.com"]

[Event "Titled Tuesday Blitz April 12 Late 2022"]
[White "Babazada, Khazar"]
[Black "Nakamura, Hikaru"]
[WhiteFideId "13413554"]
[BlackFideId "2016192"]
[WhiteElo "2406"]
[BlackElo "2850"]
[Result "0-1"]
[Round "03"]
[TimeControl "180+1"]
[Date "2022.04.12"]
[WhiteClock "0:00:09"]
[BlackClock "0:00:06"]

1. e4 {[%clk 0:03:00]}  c6 {[%clk 0:02:56]} 2. Nc3 {[%clk 0:03:01]}  d5 {[%clk 0:02:56]} 3. d4 {[%clk 0:03:00]}  g6 {[%clk 0:02:53]} 4. Nf3 {[%clk 0:02:53]}  dxe4 {[%clk 0:02:51]} 5. Nxe4 {[%clk 0:02:53]}  Nf6 {[%clk 0:02:52]} 6. Nxf6+ {[%clk 0:02:45]}  exf6 {[%clk 0:02:53]} 7. Bc4 {[%clk 0:02:46]}  Bg7 {[%clk 0:02:53]} 8. O-O {[%clk 0:02:44]}  O-O {[%clk 0:02:53]} 9. h3 {[%clk 0:02:44]}  Nd7 {[%clk 0:02:53]} 10. c3 {[%clk 0:02:44]}  b5 {[%clk 0:02:53]} 11. Bb3 {[%clk 0:02:42]}  Nb6 {[%clk 0:02:53]} 12. Bf4 {[%clk 0:02:37]}  a5 {[%clk 0:02:54]} 13. a3 {[%clk 0:02:32]}  a4 {[%clk 0:02:54]} 14. Ba2 {[%clk 0:02:32]}  Re8 {[%clk 0:02:54]} 15. Re1 {[%clk 0:02:30]}  Ra7 {[%clk 0:02:50]} 16. Qd2 {[%clk 0:02:23]}  Be6 {[%clk 0:02:48]} 17. Bxe6 {[%clk 0:02:19]}  fxe6 {[%clk 0:02:49]} 18. Re2 {[%clk 0:02:16]}  Qd5 {[%clk 0:02:48]} 19. Rae1 {[%clk 0:02:16]}  Rae7 {[%clk 0:02:45]} 20. Qc2 {[%clk 0:02:12]}  g5 {[%clk 0:02:42]} 21. Bg3 {[%clk 0:02:10]}  Nd7 {[%clk 0:02:39]} 22. Nd2 {[%clk 0:02:10]}  f5 {[%clk 0:02:39]} 23. Bh2 {[%clk 0:01:56]}  f4 {[%clk 0:02:34]} 24. Qe4 {[%clk 0:01:52]}  e5 {[%clk 0:02:15]} 25. Qxd5+ {[%clk 0:01:48]}  cxd5 {[%clk 0:02:16]} 26. Nf3 {[%clk 0:01:46]}  e4 {[%clk 0:02:16]} 27. Nxg5 {[%clk 0:01:47]}  h6 {[%clk 0:02:16]} 28. Nxe4 {[%clk 0:01:47]}  dxe4 {[%clk 0:02:16]} 29. Bxf4 {[%clk 0:01:47]}  Nb6 {[%clk 0:02:17]} 30. f3 {[%clk 0:01:20]}  Nd5 {[%clk 0:02:15]} 31. Bd6 {[%clk 0:01:20]}  Rd7 {[%clk 0:01:59]} 32. Rxe4 {[%clk 0:01:00]}  Rxe4 {[%clk 0:01:58]} 33. fxe4 {[%clk 0:01:01]}  Nxc3 {[%clk 0:01:58]} 34. e5 {[%clk 0:00:58]}  Nd5 {[%clk 0:01:55]} 35. Rc1 {[%clk 0:00:53]}  Nf4 {[%clk 0:01:54]} 36. Rc8+ {[%clk 0:00:38]}  Kf7 {[%clk 0:01:51]} 37. Kf2 {[%clk 0:00:39]}  Nd5 {[%clk 0:01:19]} 38. Kf3 {[%clk 0:00:32]}  Nb6 {[%clk 0:01:15]} 39. Rb8 {[%clk 0:00:24]}  Nc4 {[%clk 0:01:16]} 40. Bc5 {[%clk 0:00:24]}  Ke6 {[%clk 0:00:58]} 41. Rxb5 {[%clk 0:00:23]}  Rd5 {[%clk 0:00:35]} 42. Rb4 {[%clk 0:00:23]}  Nxe5+ {[%clk 0:00:34]} 43. Ke4 {[%clk 0:00:22]}  Nd7 {[%clk 0:00:32]} 44. Ba7 {[%clk 0:00:18]}  Ra5 {[%clk 0:00:29]} 45. Rb7 {[%clk 0:00:19]}  Bf8 {[%clk 0:00:27]} 46. Bb8 {[%clk 0:00:17]}  Nf6+ {[%clk 0:00:21]} 47. Kd3 {[%clk 0:00:17]}  Ra6 {[%clk 0:00:20]} 48. Be5 {[%clk 0:00:17]}  Nd7 {[%clk 0:00:20]} 49. Bf4 {[%clk 0:00:16]}  Nf6 {[%clk 0:00:20]} 50. Be5 {[%clk 0:00:15]}  Be7 {[%clk 0:00:21]} 51. g4 {[%clk 0:00:13]}  h5 {[%clk 0:00:18]} 52. g5 {[%clk 0:00:12]}  Nd7 {[%clk 0:00:18]} 53. Bf4 {[%clk 0:00:11]}  Nf8 {[%clk 0:00:18]} 54. h4 {[%clk 0:00:11]}  Ng6 {[%clk 0:00:18]} 55. Bg3 {[%clk 0:00:11]}  Kf5 {[%clk 0:00:16]} 56. d5 {[%clk 0:00:10]}  Kg4 {[%clk 0:00:13]} 57. Bf2 {[%clk 0:00:10]}  Bd6 {[%clk 0:00:13]} 58. Ke4 {[%clk 0:00:09]}  Ra8 {[%clk 0:00:09]} 59. Rb6 {[%clk 0:00:07]}  Re8+ {[%clk 0:00:10]} 60. Kd3 {[%clk 0:00:07]}  Nf4+ {[%clk 0:00:09]} 61. Kc4 {[%clk 0:00:07]}  Re4+ {[%clk 0:00:10]} 62. Kb5 {[%clk 0:00:07]}  Be5 {[%clk 0:00:09]} 63. g6 {[%clk 0:00:07]}  Re2 {[%clk 0:00:08]} 64. Bc5 {[%clk 0:00:06]}  Nxd5 {[%clk 0:00:08]} 65. g7 {[%clk 0:00:05]}  Bxg7 {[%clk 0:00:04]} 66. Rg6+ {[%clk 0:00:06]}  Kxh4 {[%clk 0:00:04]} 67. Rxg7 {[%clk 0:00:07]}  Rxb2+ {[%clk 0:00:04]} 68. Kxa4 {[%clk 0:00:07]}  Nc3+ {[%clk 0:00:04]} 69. Ka5 {[%clk 0:00:08]}  Rb5+ {[%clk 0:00:05]} 70. Ka6 {[%clk 0:00:09]}  Rxc5 {[%clk 0:00:05]} 71. a4 {[%clk 0:00:09]}  Nxa4 {[%clk 0:00:06]} 0-1


[Site "https://www.chess.com"]

[Event "Titled Tuesday Blitz April 12 Late 2022"]
[White "Bach, Matthias"]
[Black "Swicarz, Maciej"]
[WhiteFideId "4603168"]
[BlackFideId "1113585"]
[WhiteElo "2165"]
[BlackElo "2057"]
[Result "0-1"]
[Round "03"]
[TimeControl "180+1"]
[Date "2022.04.13"]
[WhiteClock "0:01:39"]
[BlackClock "0:01:27"]

1. d4 {[%clk 0:02:57]}  f5 {[%clk 0:02:59]} 2. e4 {[%clk 0:02:55]}  fxe4 {[%clk 0:02:59]} 3. Nc3 {[%clk 0:02:56]}  Nf6 {[%clk 0:02:58]} 4. f3 {[%clk 0:02:56]}  d5 {[%clk 0:02:56]} 5. Bg5 {[%clk 0:02:55]}  Nc6 {[%clk 0:02:44]} 6. Bb5 {[%clk 0:02:46]}  Bf5 {[%clk 0:02:31]} 7. Nge2 {[%clk 0:02:44]}  exf3 {[%clk 0:02:29]} 8. gxf3 {[%clk 0:02:43]}  e6 {[%clk 0:02:24]} 9. O-O {[%clk 0:02:39]}  Bd6 {[%clk 0:02:20]} 10. Ng3 {[%clk 0:02:38]}  Bxg3 {[%clk 0:02:17]} 11. hxg3 {[%clk 0:02:37]}  O-O {[%clk 0:02:10]} 12. g4 {[%clk 0:02:37]}  Bg6 {[%clk 0:02:09]} 13. Re1 {[%clk 0:02:30]}  Qd6 {[%clk 0:02:09]} 14. Qd2 {[%clk 0:02:23]}  Nxd4 {[%clk 0:01:53]} 15. Kg2 {[%clk 0:02:04]}  Nxc2 {[%clk 0:01:49]} 16. Bf4 {[%clk 0:02:00]}  Qb6 {[%clk 0:01:38]} 17. Rac1 {[%clk 0:01:51]}  Nxe1+ {[%clk 0:01:38]} 18. Rxe1 {[%clk 0:01:52]}  d4 {[%clk 0:01:30]} 19. Bc4 {[%clk 0:01:39]}  dxc3 {[%clk 0:01:29]} 20. bxc3 {[%clk 0:01:39]}  Rae8 {[%clk 0:01:27]} 0-1


[Site "https://www.chess.com"]

[Event "Titled Tuesday Blitz April 12 Late 2022"]
[White "Batsiashvili, Nino"]
[Black "Sochacki, Christophe"]
[WhiteFideId "13602993"]
[BlackFideId "662569"]
[WhiteElo "2192"]
[BlackElo "2480"]
[Result "0-1"]
[Round "03"]
[TimeControl "180+1"]
[Date "2022.04.13"]
[WhiteClock "0:00:02"]
[BlackClock "0:00:15"]

1. d4 {[%clk 0:02:57]}  Nc6 {[%clk 0:02:58]} 2. g3 {[%clk 0:02:55]}  d6 {[%clk 0:02:58]} 3. Bg2 {[%clk 0:02:54]}  e5 {[%clk 0:02:59]} 4. dxe5 {[%clk 0:02:50]}  Nxe5 {[%clk 0:02:58]} 5. Nf3 {[%clk 0:02:48]}  c6 {[%clk 0:02:47]} 6. O-O {[%clk 0:02:42]}  Nf6 {[%clk 0:02:44]} 7. Nxe5 {[%clk 0:02:41]}  dxe5 {[%clk 0:02:43]} 8. Qxd8+ {[%clk 0:02:42]}  Kxd8 {[%clk 0:02:43]} 9. b3 {[%clk 0:02:35]}  Bf5 {[%clk 0:02:38]} 10. Bb2 {[%clk 0:02:23]}  Bd6 {[%clk 0:02:31]} 11. c4 {[%clk 0:02:12]}  Re8 {[%clk 0:02:26]} 12. Nc3 {[%clk 0:02:08]}  Kc7 {[%clk 0:02:24]} 13. Na4 {[%clk 0:02:07]}  Rad8 {[%clk 0:02:22]} 14. Rfd1 {[%clk 0:02:01]}  Nd7 {[%clk 0:01:45]} 15. Bc3 {[%clk 0:01:28]}  f6 {[%clk 0:01:39]} 16. Rd2 {[%clk 0:01:28]}  Nc5 {[%clk 0:01:33]} 17. Rxd6 {[%clk 0:00:59]}  Kxd6 {[%clk 0:01:18]} 18. Rd1+ {[%clk 0:00:58]}  Kc7 {[%clk 0:01:15]} 19. Rxd8 {[%clk 0:00:19]}  Rxd8 {[%clk 0:01:15]} 20. Nb2 {[%clk 0:00:15]}  Ne4 {[%clk 0:01:10]} 21. Be1 {[%clk 0:00:14]}  g5 {[%clk 0:01:02]} 22. g4 {[%clk 0:00:14]}  Bg6 {[%clk 0:01:01]} 23. h4 {[%clk 0:00:12]}  gxh4 {[%clk 0:00:56]} 24. Kh2 {[%clk 0:00:12]}  Ng5 {[%clk 0:00:48]} 25. e3 {[%clk 0:00:06]}  h3 {[%clk 0:00:37]} 26. Bh1 {[%clk 0:00:06]}  e4 {[%clk 0:00:38]} 27. Kg3 {[%clk 0:00:06]}  h5 {[%clk 0:00:34]} 28. Bc3 {[%clk 0:00:05]}  Rf8 {[%clk 0:00:25]} 29. gxh5 {[%clk 0:00:06]}  Bxh5 {[%clk 0:00:25]} 30. c5 {[%clk 0:00:07]}  b6 {[%clk 0:00:24]} 31. cxb6+ {[%clk 0:00:06]}  axb6 {[%clk 0:00:25]} 32. Nc4 {[%clk 0:00:07]}  Bf3 {[%clk 0:00:24]} 33. Bxf3 {[%clk 0:00:06]}  exf3 {[%clk 0:00:24]} 34. Nd2 {[%clk 0:00:06]}  Rh8 {[%clk 0:00:20]} 35. Bxf6 {[%clk 0:00:06]}  h2 {[%clk 0:00:18]} 36. Bxh8 {[%clk 0:00:06]}  h1=Q {[%clk 0:00:16]} 37. Be5+ {[%clk 0:00:06]}  Kd7 {[%clk 0:00:16]} 38. Nc4 {[%clk 0:00:06]}  Qg2+ {[%clk 0:00:16]} 39. Kf4 {[%clk 0:00:06]}  b5 {[%clk 0:00:15]} 40. Nd6 {[%clk 0:00:05]}  Ke6 {[%clk 0:00:15]} 41. Ne8 {[%clk 0:00:03]}  Nh3+ {[%clk 0:00:15]} 42. Ke4 {[%clk 0:00:03]}  Nxf2+ {[%clk 0:00:15]} 43. Kd4 {[%clk 0:00:03]}  c5+ {[%clk 0:00:15]} 44. Kxc5 {[%clk 0:00:02]}  Kxe5 {[%clk 0:00:15]} 0-1


[Site "https://www.chess.com"]

[Event "Titled Tuesday Blitz April 12 Late 2022"]
[White "Bernat, David"]
[Black "Khamzin, Olzhas"]
[WhiteFideId "2099225"]
[BlackFideId "13701690"]
[WhiteElo "2295"]
[BlackElo "2155"]
[Result "0-1"]
[Round "03"]
[TimeControl "180+1"]
[Date "2022.04.13"]
[WhiteClock "0:00:06"]
[BlackClock "0:00:43"]

1. c4 {[%clk 0:01:48]}  e5 {[%clk 0:02:58]} 2. g3 {[%clk 0:01:48]}  Nf6 {[%clk 0:02:57]} 3. Bg2 {[%clk 0:01:48]}  Bb4 {[%clk 0:02:57]} 4. a3 {[%clk 0:01:47]}  Bc5 {[%clk 0:02:55]} 5. Nc3 {[%clk 0:01:48]}  a5 {[%clk 0:02:54]} 6. e3 {[%clk 0:01:48]}  O-O {[%clk 0:02:51]} 7. Nge2 {[%clk 0:01:48]}  c6 {[%clk 0:02:51]} 8. d4 {[%clk 0:01:47]}  exd4 {[%clk 0:02:48]} 9. Nxd4 {[%clk 0:01:48]}  d6 {[%clk 0:02:43]} 10. O-O {[%clk 0:01:47]}  Qe7 {[%clk 0:02:39]} 11. Rb1 {[%clk 0:01:47]}  Na6 {[%clk 0:02:35]} 12. Na4 {[%clk 0:01:33]}  Rd8 {[%clk 0:02:26]} 13. Bd2 {[%clk 0:01:27]}  Nc7 {[%clk 0:02:10]} 14. b4 {[%clk 0:01:14]}  axb4 {[%clk 0:02:00]} 15. axb4 {[%clk 0:01:15]}  Bxd4 {[%clk 0:01:50]} 16. exd4 {[%clk 0:01:14]}  Bf5 {[%clk 0:01:50]} 17. Ra1 {[%clk 0:01:11]}  Re8 {[%clk 0:01:31]} 18. Nb6 {[%clk 0:00:39]}  Rxa1 {[%clk 0:01:27]} 19. Qxa1 {[%clk 0:00:40]}  Ne6 {[%clk 0:01:15]} 20. Re1 {[%clk 0:00:34]}  Qd8 {[%clk 0:01:12]} 21. c5 {[%clk 0:00:09]}  dxc5 {[%clk 0:01:11]} 22. bxc5 {[%clk 0:00:07]}  Nxd4 {[%clk 0:01:04]} 23. Rxe8+ {[%clk 0:00:06]}  Nxe8 {[%clk 0:01:04]} 24. Be3 {[%clk 0:00:05]}  Ne6 {[%clk 0:00:58]} 25. Qa8 {[%clk 0:00:04]}  Qxa8 {[%clk 0:00:52]} 26. Nxa8 {[%clk 0:00:05]}  N8c7 {[%clk 0:00:49]} 27. Nb6 {[%clk 0:00:06]}  Na6 {[%clk 0:00:49]} 28. Nd7 {[%clk 0:00:06]}  Nec7 {[%clk 0:00:44]} 29. Bf1 {[%clk 0:00:06]}  Bxd7 {[%clk 0:00:43]} 0-1


[Site "https://www.chess.com"]

[Event "Titled Tuesday Blitz April 12 Late 2022"]
[White "Bluebaum, Matthias"]
[Black "Savchenko, Boris"]
[WhiteFideId "24651516"]
[BlackFideId "4147332"]
[WhiteElo "2550"]
[BlackElo "2557"]
[Result "1/2-1/2"]
[Round "03"]
[TimeControl "180+1"]
[Date "2022.04.12"]
[WhiteClock "0:00:18"]
[BlackClock "0:00:25"]

1. d4 {[%clk 0:03:00]}  Nf6 {[%clk 0:02:59]} 2. c4 {[%clk 0:03:01]}  g6 {[%clk 0:03:00]} 3. Nc3 {[%clk 0:03:01]}  d5 {[%clk 0:03:00]} 4. cxd5 {[%clk 0:03:02]}  Nxd5 {[%clk 0:03:01]} 5. e4 {[%clk 0:03:03]}  Nxc3 {[%clk 0:03:01]} 6. bxc3 {[%clk 0:03:04]}  Bg7 {[%clk 0:03:02]} 7. Nf3 {[%clk 0:03:04]}  c5 {[%clk 0:03:02]} 8. Bb5+ {[%clk 0:03:05]}  Nc6 {[%clk 0:03:01]} 9. O-O {[%clk 0:03:05]}  O-O {[%clk 0:02:56]} 10. Bxc6 {[%clk 0:03:05]}  bxc6 {[%clk 0:02:56]} 11. Qc2 {[%clk 0:03:06]}  c4 {[%clk 0:02:55]} 12. a4 {[%clk 0:03:01]}  Bg4 {[%clk 0:02:54]} 13. Ne5 {[%clk 0:03:01]}  Bxe5 {[%clk 0:02:52]} 14. dxe5 {[%clk 0:03:02]}  Qd3 {[%clk 0:02:51]} 15. Qxd3 {[%clk 0:02:46]}  cxd3 {[%clk 0:02:52]} 16. f3 {[%clk 0:02:47]}  Be6 {[%clk 0:02:48]} 17. Be3 {[%clk 0:02:40]}  Bb3 {[%clk 0:02:41]} 18. Rfb1 {[%clk 0:02:37]}  Rfb8 {[%clk 0:02:34]} 19. a5 {[%clk 0:01:59]}  Rb5 {[%clk 0:02:28]} 20. a6 {[%clk 0:01:54]}  c5 {[%clk 0:02:21]} 21. c4 {[%clk 0:01:51]}  Bxc4 {[%clk 0:02:20]} 22. Rxb5 {[%clk 0:01:49]}  Bxb5 {[%clk 0:02:21]} 23. Bxc5 {[%clk 0:01:50]}  Rd8 {[%clk 0:02:13]} 24. Bxe7 {[%clk 0:01:36]}  Rc8 {[%clk 0:02:10]} 25. Bg5 {[%clk 0:01:13]}  Rc2 {[%clk 0:01:55]} 26. Rb1 {[%clk 0:01:14]}  Bxa6 {[%clk 0:01:55]} 27. Rb8+ {[%clk 0:01:12]}  Bc8 {[%clk 0:01:48]} 28. Ra8 {[%clk 0:01:07]}  a6 {[%clk 0:01:41]} 29. g4 {[%clk 0:01:07]}  Kf8 {[%clk 0:01:34]} 30. h4 {[%clk 0:01:07]}  Ke8 {[%clk 0:01:34]} 31. Kf1 {[%clk 0:01:05]}  h5 {[%clk 0:01:29]} 32. gxh5 {[%clk 0:01:04]}  gxh5 {[%clk 0:01:30]} 33. Ke1 {[%clk 0:01:04]}  Kd7 {[%clk 0:01:11]} 34. Ra7+ {[%clk 0:01:04]}  Rc7 {[%clk 0:01:10]} 35. Rxc7+ {[%clk 0:01:04]}  Kxc7 {[%clk 0:01:10]} 36. Kd2 {[%clk 0:01:05]}  a5 {[%clk 0:01:00]} 37. Kxd3 {[%clk 0:01:05]}  Kd7 {[%clk 0:00:57]} 38. Bd2 {[%clk 0:01:02]}  a4 {[%clk 0:00:57]} 39. Bb4 {[%clk 0:01:03]}  Bb7 {[%clk 0:00:56]} 40. Kd4 {[%clk 0:01:03]}  Ke6 {[%clk 0:00:55]} 41. f4 {[%clk 0:01:03]}  Bc6 {[%clk 0:00:54]} 42. Ba3 {[%clk 0:00:38]}  Bb7 {[%clk 0:00:54]} 43. f5+ {[%clk 0:00:38]}  Kd7 {[%clk 0:00:53]} 44. Ke3 {[%clk 0:00:39]}  Ba6 {[%clk 0:00:46]} 45. Kf4 {[%clk 0:00:39]}  Bd3 {[%clk 0:00:39]} 46. Bb2 {[%clk 0:00:39]}  Bc2 {[%clk 0:00:37]} 47. Ba3 {[%clk 0:00:19]}  Bd3 {[%clk 0:00:37]} 48. Bb4 {[%clk 0:00:18]}  Bc2 {[%clk 0:00:36]} 49. Bc5 {[%clk 0:00:19]}  Bb1 {[%clk 0:00:36]} 50. Ba3 {[%clk 0:00:18]}  Bc2 {[%clk 0:00:36]} 51. Kg5 {[%clk 0:00:16]}  Bxe4 {[%clk 0:00:35]} 52. Kxh5 {[%clk 0:00:17]}  Bxf5 {[%clk 0:00:35]} 53. Kg5 {[%clk 0:00:18]}  Ke6 {[%clk 0:00:35]} 54. Bb2 {[%clk 0:00:19]}  a3 {[%clk 0:00:34]} 55. Ba1 {[%clk 0:00:19]}  Be4 {[%clk 0:00:32]} 56. h5 {[%clk 0:00:19]}  a2 {[%clk 0:00:31]} 57. Kh6 {[%clk 0:00:19]}  Bf3 {[%clk 0:00:28]} 58. Bb2 {[%clk 0:00:20]}  Kf5 {[%clk 0:00:26]} 59. Ba1 {[%clk 0:00:19]}  Bg4 {[%clk 0:00:26]} 60. Bb2 {[%clk 0:00:19]}  Bf3 {[%clk 0:00:26]} 61. Ba1 {[%clk 0:00:19]}  Kg4 {[%clk 0:00:26]} 62. Bb2 {[%clk 0:00:20]}  Bd5 {[%clk 0:00:25]} 63. Ba1 {[%clk 0:00:19]}  Kh4 {[%clk 0:00:25]} 64. Bb2 {[%clk 0:00:18]}  Bf3 {[%clk 0:00:25]} 65. Kg7 {[%clk 0:00:16]}  Bxh5 {[%clk 0:00:24]} 66. Kf6 {[%clk 0:00:17]}  Kg4 {[%clk 0:00:25]} 67. e6 {[%clk 0:00:17]}  fxe6 {[%clk 0:00:25]} 68. Kxe6 {[%clk 0:00:18]}  a1=Q {[%clk 0:00:25]} 69. Bxa1 {[%clk 0:00:18]} 1/2-1/2


[Site "https://www.chess.com"]